Workbook

Sheet المقسطون
C2: ملف العميــل | D2: 100 | E2: الاســم | F2: =VLOOKUP(D2,B26:K61,2,0) -> 100 | J2: تاريخ اليوم : | K2: =TODAY() -> 2022-02-05
A4: نظـام الخصــم | I4: حساب نســبة التقسـيط | L4: نظام تحويل التاريخ من هجري لميلادي
E5: إسم البضاعة :
C6: السعر النقدي | D6: =VLOOKUP(D2,B26:K61,4,0) -> 45000 | I6: السعر | J6: الاشهر | L6: بداية التسديد | M6: نهاية التسديد
C7: قيمة العقد بالتقسيط | D7: =VLOOKUP(D2,B26:K61,5,0) -> 46400 | E7: موديلها : | I7: 50000 | J7: =VLOOKUP(D2,B26:K61,3,1) -> 40 | L7: =D11 -> 2008-10-25 | M7: =D12 -> 2011-12-20
C8: المقدم | D8: 0 | I8: الزيادة | J8: =SUM(I7*(J7%+5%)) -> 22500 | L8: =TEXT(L7,"[$-,197000]B2yyyy/mm/dd;@")+1 -> 2008-10-26 | M8: =TEXT(M7,"[$-,197000]B2yyyy/mm/dd;@")+1 -> 2011-12-21
C9: القسط الشهري | D9: =VLOOKUP(D2,B26:K61,6,0) -> 1160 | I9: بعد الزيادة | J9: =SUM(I7+J8) -> 72500 | L9: =TEXT(L7+1,"[$-,197]B2yyyy/mm/dd;@") -> 1429/10/26 | M9: =TEXT(M7+1,"[$-,197]B2yyyy/mm/dd;@") -> 1433/01/26
C10: ماتم سداده من المبلغ | D10: =IF($D$11>$K$2,0,IF($D$12<$K$2,$D$7,(SUM(DATEDIF($D$11,$K$2,"Y")*12)+(DATEDIF($D$11,$K$2,"ym"))+(IF(DATEDIF($D$11,$K$2,"md")<>0,1,0)))*D9)) -> 46400 | F10: المدة | G10: =(D7-D8)/D9 -> 40 | I10: القسط الشهري | J10: =SUM(J9/J7) -> 1812.5
C11: بداية التسديد | D11: =VLOOKUP(D2,B26:K61,7,0) -> 2008-10-25 | F11: الربح كامل | G11: =D7-D6 -> 1400 | I11: التاريخ الميلادي والتاريخ الهجري
C12: نهاية التسديد | D12: =VLOOKUP(D2,B26:K61,8,0) -> 2011-12-20 | F12: الربح الشهري | G12: =G11/G10 -> 35
C13: الأشهر المسددة | D13: =(D10/D9) -> 40 | F13: النسبة | G13: =(G11/(D6-D8))*100 -> 3.111111111 | I13: ملف العميــل | J13: الاســم | L13: مدة العقـد | M13: من | N13: الى
C14: الأشهر المتبقية | D14: =D16/D9 -> 0 | F14: النسبة السنوية | G14: =(G13/G10)*12 -> 0.9333333333 | I14: =D2 -> 100 | J14: =F2 -> 100 | L14: =G10 -> 40 | M14: =D11 -> 2008-10-25 | N14: =D12 -> 2011-12-20
F15: النسبة الشهرية | G15: =G13/G10 -> 0.07777777778 | I15: حالة الاشهر وقيمة العقد | M15: =TEXT(M14,"[$-,197000]B2yyyy/mm/dd;@")+1 -> 2008-10-26 | N15: =EDATE(M15,L14) -> 2012-02-26
C16: الباقي من المبلغ | D16: =D7-D10 -> 0 | I16: الأشهر المسددة | J16: ='حركة تسديد عميل'!H7 -> 40 | K16: المبــالغ المســدة | L16: =(J16*D9) -> 46400 | M16: نسبة السداد بـ %
C17: الخصم | D17: =((D16*G14%)*(D14/12))/(1+((G14%)*(D14/12))) -> 0 | I17: الأشهر المتبقية | J17: =L14-J16 -> 0 | K17: المبــالغ المتبـقية | L17: =(J17*D9) -> 0 | M17: =L16/D7 -> 1
C18: المطلوب | D18: =D16-D17 -> 0 | I18: حـالة العقــد | J18: =VLOOKUP(D2,B26:N61,11,0) -> العقـد منتهى | K18: مبلغ السداد المبكر | L18: =IF(J18="سداد مبكر",INDEX(N26:N61,MATCH(J18,L26:L61,0)),"") ->  | M18: تاريخ السداد المبكر | N18: =IF(J18="سداد مبكر",INDEX(M26:M61,MATCH(J18,L26:L61,0)),"") -> 
M19: =VLOOKUP(D4,B27:L62,11,0) -> 
C23: ملاحظة : اذا تم السداد قبل الموعد المحدد يتم إضافة 1000 ( الف ريال )
B25: رقم الملف | C25: الاسم | D25: مدة القرض ( بالشهر ) | E25: السعر النقدي | F25: القيمة بعد التقسيط | G25: القسط | H25: من | I25: الى | J25: الربــح | K25: الدخل الشهري | L25: حـالة العقـد | M25: سداد مبكر بتاريخ | N25: المبلغ المسدد
B26: 100 | C26: 100 | D26: 40 | E26: 45000 | F26: 46400 | G26: 1160 | H26: 2008-10-25 | I26: =MID(TEXT(H26,"b2dd.mm.yyyy"),1,2)-MID(TEXT(H26+ROUND((D26-1)*354.367056/12,0),"b2dd.mm.yyyy"),1,2)+H26+ROUND((D26-1)*354.367056/12,0) -> 2011-12-20 | J26: =SUM(E26*(D26%+5%)) -> 20250 | K26: 0 | L26: =IFERROR(IF(AND(M26<>"",M26<I26),"سداد مبكر",IF(TODAY()=I26,"العقد انتهى اليوم",IF(TODAY()>I26,"العقـد منتهى",IF(TODAY()<H26,"لم يتم تداولة","العقـد سارى")))),"") -> العقـد منتهى
G53: =F53/40 -> 0
G54: 0
G55: 0
G56: 0
G57: 0
G58: 0
G59: 0
G60: 0
G61: 0
E62: =SUM(E26:E61) -> 45000 | F62: =SUM(F26:F61) -> 46400 | J62: =SUM(J26:J61) -> 20250 | K62: =SUM(K26:K61) -> 0

Sheet حركة تسديد عميل
A2: ملف العميــل | B2: 100 | C2: الاســم | D2: =VLOOKUP(B2,المقسطون!B25:I60,2,0) -> 100 | H2: تاريخ اليوم : | I2: =TODAY() -> 2022-02-05
B5: مدة العقد (بالاشهر) | C5: =VLOOKUP(B2,المقسطون!$B$25:$H$60,3,0) -> 40 | F5: حـالة العقــد | G5: =VLOOKUP(B2,المقسطون!B26:N61,11,0) -> العقـد منتهى
B7: بداية العقد | C7: =VLOOKUP(B2,المقسطون!$B$25:$H$60,7,0) -> 2008-10-25 | G7: الأشهر المسددة | H7: =IF(COUNT(H19:H58)>C9,C9,COUNT(H19:H58)) -> 40
C8: =TEXT(C7,"[$-,197000]B2yyyy/mm/dd;@")+1 -> 2008-10-26 | G8: الأشهر المتبقية | H8: =C5-H7 -> 0
B9: نهاية العقد | C9: =TEXT(C7+((C5-1)*29.5),"B2yyyy/mm/")&TEXT(C7,"B2dd") -> 1433/01/25 | D9: المتأخرات : | G9: المبــالغ المســدة | H9: =SUM(H19:H58) -> 46400
C10: =ConvertDate(C9) -> 2011/12/20 | G10: المبــالغ المتبـقية | H10: =-(H9-C14) -> 0
B11: القســـــــط | C11: =VLOOKUP(B2,المقسطون!$B$25:$H$60,6,0) -> 1160 | G11: نسبة السداد بـ % | H11: =H9/C14 -> 1
B12: السعر النقدي | C12: =VLOOKUP(B2,المقسطون!$B$25:$H$60,4,0) -> 45000
B13: الربـــــــــح | C13: =VLOOKUP(B2,المقسطون!B26:N61,9,0) -> 20250 | G13: الســداد المبكـر
B14: قيمة العقد | C14: =VLOOKUP(B2,المقسطون!$B$25:$H$60,5,0) -> 46400 | D14: حركة تسديد عميل | G14: تاريخ السداد المبكر | H14: =IF(G5="سداد مبكر",INDEX(المقسطون!M26:M61,MATCH(G5,المقسطون!L26:L61,0)),"") -> 
G16: قيمة السداد المبكر | H16: =IF(G5="سداد مبكر",INDEX(المقسطون!N27:N62,MATCH(G5,المقسطون!L27:L62,0)),"") -> 
C18: الشهــر | D18: التحصيل بالتاريخ ( هـ ) | E18: التحصيل بالتاريخ ( م ) | F18: رصيد القرض | G18: القسط | H18: التسديدات | I18: الأقساط المتأخرة
C19: =IF(D19="","",ROW()-18) -> 1 | D19: =IF(h2g(TEXT($C$7+((ROW()-19)*29.5),"B2yyyy/mm/")&TEXT($C$7,"B2dd"))>$H$14,"",IF(h2g(TEXT($C$7+((ROW()-19)*29.5),"B2yyyy/mm/")&TEXT($C$7,"B2dd"))>h2g($C$9),"",TEXT($C$7+((ROW()-19)*29.5),"B2yyyy/mm/")&TEXT($C$7,"B2dd"))) -> 1429/10/25 | E19: =IF(D19<>"",ConvertDate(D19),"") -> 2008/10/25 | F19: =C14 -> 46400 | G19: =IF(D19="","",IF($C$14="","",$C$14/$C$5)) -> 1160 | H19: =IF(C19="","",IF(TODAY()>=h2g(D19),G19,"")) -> 1160
C20: =IF(D20="","",ROW()-18) -> 2 | D20: =IF(h2g(TEXT($C$7+((ROW()-19)*29.5),"B2yyyy/mm/")&TEXT($C$7,"B2dd"))>$H$14,"",IF(h2g(TEXT($C$7+((ROW()-19)*29.5),"B2yyyy/mm/")&TEXT($C$7,"B2dd"))>h2g($C$9),"",TEXT($C$7+((ROW()-19)*29.5),"B2yyyy/mm/")&TEXT($C$7,"B2dd"))) -> 1429/11/25 | E20: =IF(D20<>"",ConvertDate(D20),"") -> 2008/11/23 | F20: =IF(D20="","",F19-G20) -> 45240 | G20: 1160 | H20: =IF(C20="","",IF(TODAY()>=h2g(D20),G20,"")) -> 1160
C21: 3 | D21: =IF(h2g(TEXT($C$7+((ROW()-19)*29.5),"B2yyyy/mm/")&TEXT($C$7,"B2dd"))>$H$14,"",IF(h2g(TEXT($C$7+((ROW()-19)*29.5),"B2yyyy/mm/")&TEXT($C$7,"B2dd"))>h2g($C$9),"",TEXT($C$7+((ROW()-19)*29.5),"B2yyyy/mm/")&TEXT($C$7,"B2dd"))) -> 1429/12/25 | E21: 2008/12/23 | F21: =IF(D21="","",F20-G21) -> 44080 | G21: 1160 | H21: =IF(C21="","",IF(TODAY()>=h2g(D21),G21,"")) -> 1160
C22: 4 | D22: =IF(h2g(TEXT($C$7+((ROW()-19)*29.5),"B2yyyy/mm/")&TEXT($C$7,"B2dd"))>$H$14,"",IF(h2g(TEXT($C$7+((ROW()-19)*29.5),"B2yyyy/mm/")&TEXT($C$7,"B2dd"))>h2g($C$9),"",TEXT($C$7+((ROW()-19)*29.5),"B2yyyy/mm/")&TEXT($C$7,"B2dd"))) -> 1430/01/25 | E22: 2009/01/21 | F22: 42920 | G22: 1160 | H22: =IF(C22="","",IF(TODAY()>=h2g(D22),G22,"")) -> 1160
C23: 5 | D23: =IF(h2g(TEXT($C$7+((ROW()-19)*29.5),"B2yyyy/mm/")&TEXT($C$7,"B2dd"))>$H$14,"",IF(h2g(TEXT($C$7+((ROW()-19)*29.5),"B2yyyy/mm/")&TEXT($C$7,"B2dd"))>h2g($C$9),"",TEXT($C$7+((ROW()-19)*29.5),"B2yyyy/mm/")&TEXT($C$7,"B2dd"))) -> 1430/02/25 | E23: 2009/02/20 | F23: 41760 | G23: 1160 | H23: =IF(C23="","",IF(TODAY()>=h2g(D23),G23,"")) -> 1160
C24: 6 | D24: =IF(h2g(TEXT($C$7+((ROW()-19)*29.5),"B2yyyy/mm/")&TEXT($C$7,"B2dd"))>$H$14,"",IF(h2g(TEXT($C$7+((ROW()-19)*29.5),"B2yyyy/mm/")&TEXT($C$7,"B2dd"))>h2g($C$9),"",TEXT($C$7+((ROW()-19)*29.5),"B2yyyy/mm/")&TEXT($C$7,"B2dd"))) -> 1430/03/25 | E24: 2009/03/21 | F24: 40600 | G24: 1160 | H24: =IF(C24="","",IF(TODAY()>=h2g(D24),G24,"")) -> 1160
C25: 7 | D25: =IF(h2g(TEXT($C$7+((ROW()-19)*29.5),"B2yyyy/mm/")&TEXT($C$7,"B2dd"))>$H$14,"",IF(h2g(TEXT($C$7+((ROW()-19)*29.5),"B2yyyy/mm/")&TEXT($C$7,"B2dd"))>h2g($C$9),"",TEXT($C$7+((ROW()-19)*29.5),"B2yyyy/mm/")&TEXT($C$7,"B2dd"))) -> 1430/04/25 | E25: 2009/04/20 | F25: 39440 | G25: 1160 | H25: =IF(C25="","",IF(TODAY()>=h2g(D25),G25,"")) -> 1160
C26: 8 | D26: =IF(h2g(TEXT($C$7+((ROW()-19)*29.5),"B2yyyy/mm/")&TEXT($C$7,"B2dd"))>$H$14,"",IF(h2g(TEXT($C$7+((ROW()-19)*29.5),"B2yyyy/mm/")&TEXT($C$7,"B2dd"))>h2g($C$9),"",TEXT($C$7+((ROW()-19)*29.5),"B2yyyy/mm/")&TEXT($C$7,"B2dd"))) -> 1430/05/25 | E26: 2009/05/19 | F26: 38280 | G26: 1160 | H26: =IF(C26="","",IF(TODAY()>=h2g(D26),G26,"")) -> 1160
C27: 9 | D27: =IF(h2g(TEXT($C$7+((ROW()-19)*29.5),"B2yyyy/mm/")&TEXT($C$7,"B2dd"))>$H$14,"",IF(h2g(TEXT($C$7+((ROW()-19)*29.5),"B2yyyy/mm/")&TEXT($C$7,"B2dd"))>h2g($C$9),"",TEXT($C$7+((ROW()-19)*29.5),"B2yyyy/mm/")&TEXT($C$7,"B2dd"))) -> 1430/06/25 | E27: 2009/06/18 | F27: 37120 | G27: 1160 | H27: =IF(C27="","",IF(TODAY()>=h2g(D27),G27,"")) -> 1160
C28: 10 | D28: =IF(h2g(TEXT($C$7+((ROW()-19)*29.5),"B2yyyy/mm/")&TEXT($C$7,"B2dd"))>$H$14,"",IF(h2g(TEXT($C$7+((ROW()-19)*29.5),"B2yyyy/mm/")&TEXT($C$7,"B2dd"))>h2g($C$9),"",TEXT($C$7+((ROW()-19)*29.5),"B2yyyy/mm/")&TEXT($C$7,"B2dd"))) -> 1430/07/25 | E28: 2009/07/17 | F28: 35960 | G28: 1160 | H28: =IF(C28="","",IF(TODAY()>=h2g(D28),G28,"")) -> 1160
C29: 11 | D29: =IF(h2g(TEXT($C$7+((ROW()-19)*29.5),"B2yyyy/mm/")&TEXT($C$7,"B2dd"))>$H$14,"",IF(h2g(TEXT($C$7+((ROW()-19)*29.5),"B2yyyy/mm/")&TEXT($C$7,"B2dd"))>h2g($C$9),"",TEXT($C$7+((ROW()-19)*29.5),"B2yyyy/mm/")&TEXT($C$7,"B2dd"))) -> 1430/08/25 | E29: 2009/08/16 | F29: 34800 | G29: 1160 | H29: =IF(C29="","",IF(TODAY()>=h2g(D29),G29,"")) -> 1160
C30: 12 | D30: =IF(h2g(TEXT($C$7+((ROW()-19)*29.5),"B2yyyy/mm/")&TEXT($C$7,"B2dd"))>$H$14,"",IF(h2g(TEXT($C$7+((ROW()-19)*29.5),"B2yyyy/mm/")&TEXT($C$7,"B2dd"))>h2g($C$9),"",TEXT($C$7+((ROW()-19)*29.5),"B2yyyy/mm/")&TEXT($C$7,"B2dd"))) -> 1430/09/25 | E30: 2009/09/14 | F30: 33640 | G30: 1160 | H30: =IF(C30="","",IF(TODAY()>=h2g(D30),G30,"")) -> 1160
C31: 13 | D31: =IF(h2g(TEXT($C$7+((ROW()-19)*29.5),"B2yyyy/mm/")&TEXT($C$7,"B2dd"))>$H$14,"",IF(h2g(TEXT($C$7+((ROW()-19)*29.5),"B2yyyy/mm/")&TEXT($C$7,"B2dd"))>h2g($C$9),"",TEXT($C$7+((ROW()-19)*29.5),"B2yyyy/mm/")&TEXT($C$7,"B2dd"))) -> 1430/10/25 | E31: 2009/10/14 | F31: 32480 | G31: 1160 | H31: =IF(C31="","",IF(TODAY()>=h2g(D31),G31,"")) -> 1160
C32: 14 | D32: =IF(h2g(TEXT($C$7+((ROW()-19)*29.5),"B2yyyy/mm/")&TEXT($C$7,"B2dd"))>$H$14,"",IF(h2g(TEXT($C$7+((ROW()-19)*29.5),"B2yyyy/mm/")&TEXT($C$7,"B2dd"))>h2g($C$9),"",TEXT($C$7+((ROW()-19)*29.5),"B2yyyy/mm/")&TEXT($C$7,"B2dd"))) -> 1430/11/25 | E32: 2009/11/12 | F32: 31320 | G32: 1160 | H32: =IF(C32="","",IF(TODAY()>=h2g(D32),G32,"")) -> 1160
C33: 15 | D33: =IF(h2g(TEXT($C$7+((ROW()-19)*29.5),"B2yyyy/mm/")&TEXT($C$7,"B2dd"))>$H$14,"",IF(h2g(TEXT($C$7+((ROW()-19)*29.5),"B2yyyy/mm/")&TEXT($C$7,"B2dd"))>h2g($C$9),"",TEXT($C$7+((ROW()-19)*29.5),"B2yyyy/mm/")&TEXT($C$7,"B2dd"))) -> 1430/12/25 | E33: 2009/12/12 | F33: 30160 | G33: 1160 | H33: =IF(C33="","",IF(TODAY()>=h2g(D33),G33,"")) -> 1160
C34: 16 | D34: =IF(h2g(TEXT($C$7+((ROW()-19)*29.5),"B2yyyy/mm/")&TEXT($C$7,"B2dd"))>$H$14,"",IF(h2g(TEXT($C$7+((ROW()-19)*29.5),"B2yyyy/mm/")&TEXT($C$7,"B2dd"))>h2g($C$9),"",TEXT($C$7+((ROW()-19)*29.5),"B2yyyy/mm/")&TEXT($C$7,"B2dd"))) -> 1431/01/25 | E34: 2010/01/10 | F34: 29000 | G34: 1160 | H34: =IF(C34="","",IF(TODAY()>=h2g(D34),G34,"")) -> 1160
C35: 17 | D35: =IF(h2g(TEXT($C$7+((ROW()-19)*29.5),"B2yyyy/mm/")&TEXT($C$7,"B2dd"))>$H$14,"",IF(h2g(TEXT($C$7+((ROW()-19)*29.5),"B2yyyy/mm/")&TEXT($C$7,"B2dd"))>h2g($C$9),"",TEXT($C$7+((ROW()-19)*29.5),"B2yyyy/mm/")&TEXT($C$7,"B2dd"))) -> 1431/02/25 | E35: 2010/02/09 | F35: 27840 | G35: 1160 | H35: =IF(C35="","",IF(TODAY()>=h2g(D35),G35,"")) -> 1160
C36: 18 | D36: =IF(h2g(TEXT($C$7+((ROW()-19)*29.5),"B2yyyy/mm/")&TEXT($C$7,"B2dd"))>$H$14,"",IF(h2g(TEXT($C$7+((ROW()-19)*29.5),"B2yyyy/mm/")&TEXT($C$7,"B2dd"))>h2g($C$9),"",TEXT($C$7+((ROW()-19)*29.5),"B2yyyy/mm/")&TEXT($C$7,"B2dd"))) -> 1431/03/25 | E36: 2010/03/10 | F36: 26680 | G36: 1160 | H36: =IF(C36="","",IF(TODAY()>=h2g(D36),G36,"")) -> 1160
C37: 19 | D37: =IF(h2g(TEXT($C$7+((ROW()-19)*29.5),"B2yyyy/mm/")&TEXT($C$7,"B2dd"))>$H$14,"",IF(h2g(TEXT($C$7+((ROW()-19)*29.5),"B2yyyy/mm/")&TEXT($C$7,"B2dd"))>h2g($C$9),"",TEXT($C$7+((ROW()-19)*29.5),"B2yyyy/mm/")&TEXT($C$7,"B2dd"))) -> 1431/04/25 | E37: 2010/04/09 | F37: 25520 | G37: 1160 | H37: =IF(C37="","",IF(TODAY()>=h2g(D37),G37,"")) -> 1160
C38: 20 | D38: =IF(h2g(TEXT($C$7+((ROW()-19)*29.5),"B2yyyy/mm/")&TEXT($C$7,"B2dd"))>$H$14,"",IF(h2g(TEXT($C$7+((ROW()-19)*29.5),"B2yyyy/mm/")&TEXT($C$7,"B2dd"))>h2g($C$9),"",TEXT($C$7+((ROW()-19)*29.5),"B2yyyy/mm/")&TEXT($C$7,"B2dd"))) -> 1431/05/25 | E38: 2010/05/08 | F38: 24360 | G38: 1160 | H38: =IF(C38="","",IF(TODAY()>=h2g(D38),G38,"")) -> 1160
C39: 21 | D39: =IF(h2g(TEXT($C$7+((ROW()-19)*29.5),"B2yyyy/mm/")&TEXT($C$7,"B2dd"))>$H$14,"",IF(h2g(TEXT($C$7+((ROW()-19)*29.5),"B2yyyy/mm/")&TEXT($C$7,"B2dd"))>h2g($C$9),"",TEXT($C$7+((ROW()-19)*29.5),"B2yyyy/mm/")&TEXT($C$7,"B2dd"))) -> 1431/06/25 | E39: 2010/06/07 | F39: 23200 | G39: 1160 | H39: =IF(C39="","",IF(TODAY()>=h2g(D39),G39,"")) -> 1160
C40: 22 | D40: =IF(h2g(TEXT($C$7+((ROW()-19)*29.5),"B2yyyy/mm/")&TEXT($C$7,"B2dd"))>$H$14,"",IF(h2g(TEXT($C$7+((ROW()-19)*29.5),"B2yyyy/mm/")&TEXT($C$7,"B2dd"))>h2g($C$9),"",TEXT($C$7+((ROW()-19)*29.5),"B2yyyy/mm/")&TEXT($C$7,"B2dd"))) -> 1431/07/25 | E40: 2010/07/06 | F40: 22040 | G40: 1160 | H40: =IF(C40="","",IF(TODAY()>=h2g(D40),G40,"")) -> 1160
C41: 23 | D41: =IF(h2g(TEXT($C$7+((ROW()-19)*29.5),"B2yyyy/mm/")&TEXT($C$7,"B2dd"))>$H$14,"",IF(h2g(TEXT($C$7+((ROW()-19)*29.5),"B2yyyy/mm/")&TEXT($C$7,"B2dd"))>h2g($C$9),"",TEXT($C$7+((ROW()-19)*29.5),"B2yyyy/mm/")&TEXT($C$7,"B2dd"))) -> 1431/08/25 | E41: 2010/08/05 | F41: 20880 | G41: 1160 | H41: =IF(C41="","",IF(TODAY()>=h2g(D41),G41,"")) -> 1160
C42: 24 | D42: =IF(h2g(TEXT($C$7+((ROW()-19)*29.5),"B2yyyy/mm/")&TEXT($C$7,"B2dd"))>$H$14,"",IF(h2g(TEXT($C$7+((ROW()-19)*29.5),"B2yyyy/mm/")&TEXT($C$7,"B2dd"))>h2g($C$9),"",TEXT($C$7+((ROW()-19)*29.5),"B2yyyy/mm/")&TEXT($C$7,"B2dd"))) -> 1431/09/25 | E42: 2010/09/03 | F42: 19720 | G42: 1160 | H42: =IF(C42="","",IF(TODAY()>=h2g(D42),G42,"")) -> 1160
C43: 25 | D43: =IF(h2g(TEXT($C$7+((ROW()-19)*29.5),"B2yyyy/mm/")&TEXT($C$7,"B2dd"))>$H$14,"",IF(h2g(TEXT($C$7+((ROW()-19)*29.5),"B2yyyy/mm/")&TEXT($C$7,"B2dd"))>h2g($C$9),"",TEXT($C$7+((ROW()-19)*29.5),"B2yyyy/mm/")&TEXT($C$7,"B2dd"))) -> 1431/10/25 | E43: 2010/10/03 | F43: 18560 | G43: 1160 | H43: =IF(C43="","",IF(TODAY()>=h2g(D43),G43,"")) -> 1160
C44: 26 | D44: =IF(h2g(TEXT($C$7+((ROW()-19)*29.5),"B2yyyy/mm/")&TEXT($C$7,"B2dd"))>$H$14,"",IF(h2g(TEXT($C$7+((ROW()-19)*29.5),"B2yyyy/mm/")&TEXT($C$7,"B2dd"))>h2g($C$9),"",TEXT($C$7+((ROW()-19)*29.5),"B2yyyy/mm/")&TEXT($C$7,"B2dd"))) -> 1431/11/25 | E44: 2010/11/01 | F44: 17400 | G44: 1160 | H44: =IF(C44="","",IF(TODAY()>=h2g(D44),G44,"")) -> 1160
C45: 27 | D45: =IF(h2g(TEXT($C$7+((ROW()-19)*29.5),"B2yyyy/mm/")&TEXT($C$7,"B2dd"))>$H$14,"",IF(h2g(TEXT($C$7+((ROW()-19)*29.5),"B2yyyy/mm/")&TEXT($C$7,"B2dd"))>h2g($C$9),"",TEXT($C$7+((ROW()-19)*29.5),"B2yyyy/mm/")&TEXT($C$7,"B2dd"))) -> 1431/12/25 | E45: 2010/12/01 | F45: 16240 | G45: 1160 | H45: =IF(C45="","",IF(TODAY()>=h2g(D45),G45,"")) -> 1160
C46: 28 | D46: =IF(h2g(TEXT($C$7+((ROW()-19)*29.5),"B2yyyy/mm/")&TEXT($C$7,"B2dd"))>$H$14,"",IF(h2g(TEXT($C$7+((ROW()-19)*29.5),"B2yyyy/mm/")&TEXT($C$7,"B2dd"))>h2g($C$9),"",TEXT($C$7+((ROW()-19)*29.5),"B2yyyy/mm/")&TEXT($C$7,"B2dd"))) -> 1432/01/25 | E46: 2010/12/31 | F46: 15080 | G46: 1160 | H46: =IF(C46="","",IF(TODAY()>=h2g(D46),G46,"")) -> 1160
C47: 29 | D47: =IF(h2g(TEXT($C$7+((ROW()-19)*29.5),"B2yyyy/mm/")&TEXT($C$7,"B2dd"))>$H$14,"",IF(h2g(TEXT($C$7+((ROW()-19)*29.5),"B2yyyy/mm/")&TEXT($C$7,"B2dd"))>h2g($C$9),"",TEXT($C$7+((ROW()-19)*29.5),"B2yyyy/mm/")&TEXT($C$7,"B2dd"))) -> 1432/02/25 | E47: 2011/01/30 | F47: 13920 | G47: 1160 | H47: =IF(C47="","",IF(TODAY()>=h2g(D47),G47,"")) -> 1160
C48: 30 | D48: =IF(h2g(TEXT($C$7+((ROW()-19)*29.5),"B2yyyy/mm/")&TEXT($C$7,"B2dd"))>$H$14,"",IF(h2g(TEXT($C$7+((ROW()-19)*29.5),"B2yyyy/mm/")&TEXT($C$7,"B2dd"))>h2g($C$9),"",TEXT($C$7+((ROW()-19)*29.5),"B2yyyy/mm/")&TEXT($C$7,"B2dd"))) -> 1432/03/25 | E48: 2011/02/28 | F48: 12760 | G48: 1160 | H48: =IF(C48="","",IF(TODAY()>=h2g(D48),G48,"")) -> 1160
C49: 31 | D49: =IF(h2g(TEXT($C$7+((ROW()-19)*29.5),"B2yyyy/mm/")&TEXT($C$7,"B2dd"))>$H$14,"",IF(h2g(TEXT($C$7+((ROW()-19)*29.5),"B2yyyy/mm/")&TEXT($C$7,"B2dd"))>h2g($C$9),"",TEXT($C$7+((ROW()-19)*29.5),"B2yyyy/mm/")&TEXT($C$7,"B2dd"))) -> 1432/04/25 | E49: 2011/03/30 | F49: 11600 | G49: 1160 | H49: =IF(C49="","",IF(TODAY()>=h2g(D49),G49,"")) -> 1160
C50: 32 | D50: =IF(h2g(TEXT($C$7+((ROW()-19)*29.5),"B2yyyy/mm/")&TEXT($C$7,"B2dd"))>$H$14,"",IF(h2g(TEXT($C$7+((ROW()-19)*29.5),"B2yyyy/mm/")&TEXT($C$7,"B2dd"))>h2g($C$9),"",TEXT($C$7+((ROW()-19)*29.5),"B2yyyy/mm/")&TEXT($C$7,"B2dd"))) -> 1432/05/25 | E50: 2011/04/28 | F50: 10440 | G50: 1160 | H50: =IF(C50="","",IF(TODAY()>=h2g(D50),G50,"")) -> 1160
C51: 33 | D51: =IF(h2g(TEXT($C$7+((ROW()-19)*29.5),"B2yyyy/mm/")&TEXT($C$7,"B2dd"))>$H$14,"",IF(h2g(TEXT($C$7+((ROW()-19)*29.5),"B2yyyy/mm/")&TEXT($C$7,"B2dd"))>h2g($C$9),"",TEXT($C$7+((ROW()-19)*29.5),"B2yyyy/mm/")&TEXT($C$7,"B2dd"))) -> 1432/06/25 | E51: 2011/05/28 | F51: 9280 | G51: 1160 | H51: =IF(C51="","",IF(TODAY()>=h2g(D51),G51,"")) -> 1160
C52: 34 | D52: =IF(h2g(TEXT($C$7+((ROW()-19)*29.5),"B2yyyy/mm/")&TEXT($C$7,"B2dd"))>$H$14,"",IF(h2g(TEXT($C$7+((ROW()-19)*29.5),"B2yyyy/mm/")&TEXT($C$7,"B2dd"))>h2g($C$9),"",TEXT($C$7+((ROW()-19)*29.5),"B2yyyy/mm/")&TEXT($C$7,"B2dd"))) -> 1432/07/25 | E52: 2011/06/26 | F52: 8120 | G52: 1160 | H52: =IF(C52="","",IF(TODAY()>=h2g(D52),G52,"")) -> 1160
C53: 35 | D53: =IF(h2g(TEXT($C$7+((ROW()-19)*29.5),"B2yyyy/mm/")&TEXT($C$7,"B2dd"))>$H$14,"",IF(h2g(TEXT($C$7+((ROW()-19)*29.5),"B2yyyy/mm/")&TEXT($C$7,"B2dd"))>h2g($C$9),"",TEXT($C$7+((ROW()-19)*29.5),"B2yyyy/mm/")&TEXT($C$7,"B2dd"))) -> 1432/08/25 | E53: 2011/07/26 | F53: 6960 | G53: 1160 | H53: =IF(C53="","",IF(TODAY()>=h2g(D53),G53,"")) -> 1160
C54: 36 | D54: =IF(h2g(TEXT($C$7+((ROW()-19)*29.5),"B2yyyy/mm/")&TEXT($C$7,"B2dd"))>$H$14,"",IF(h2g(TEXT($C$7+((ROW()-19)*29.5),"B2yyyy/mm/")&TEXT($C$7,"B2dd"))>h2g($C$9),"",TEXT($C$7+((ROW()-19)*29.5),"B2yyyy/mm/")&TEXT($C$7,"B2dd"))) -> 1432/09/25 | E54: 2011/08/24 | F54: 5800 | G54: 1160 | H54: =IF(C54="","",IF(TODAY()>=h2g(D54),G54,"")) -> 1160
C55: 37 | D55: =IF(h2g(TEXT($C$7+((ROW()-19)*29.5),"B2yyyy/mm/")&TEXT($C$7,"B2dd"))>$H$14,"",IF(h2g(TEXT($C$7+((ROW()-19)*29.5),"B2yyyy/mm/")&TEXT($C$7,"B2dd"))>h2g($C$9),"",TEXT($C$7+((ROW()-19)*29.5),"B2yyyy/mm/")&TEXT($C$7,"B2dd"))) -> 1432/10/25 | E55: 2011/09/23 | F55: 4640 | G55: 1160 | H55: =IF(C55="","",IF(TODAY()>=h2g(D55),G55,"")) -> 1160
C56: 38 | D56: =IF(h2g(TEXT($C$7+((ROW()-19)*29.5),"B2yyyy/mm/")&TEXT($C$7,"B2dd"))>$H$14,"",IF(h2g(TEXT($C$7+((ROW()-19)*29.5),"B2yyyy/mm/")&TEXT($C$7,"B2dd"))>h2g($C$9),"",TEXT($C$7+((ROW()-19)*29.5),"B2yyyy/mm/")&TEXT($C$7,"B2dd"))) -> 1432/11/25 | E56: 2011/10/22 | F56: 3480 | G56: 1160 | H56: =IF(C56="","",IF(TODAY()>=h2g(D56),G56,"")) -> 1160
C57: 39 | D57: =IF(h2g(TEXT($C$7+((ROW()-19)*29.5),"B2yyyy/mm/")&TEXT($C$7,"B2dd"))>$H$14,"",IF(h2g(TEXT($C$7+((ROW()-19)*29.5),"B2yyyy/mm/")&TEXT($C$7,"B2dd"))>h2g($C$9),"",TEXT($C$7+((ROW()-19)*29.5),"B2yyyy/mm/")&TEXT($C$7,"B2dd"))) -> 1432/12/25 | E57: 2011/11/21 | F57: 2320 | G57: 1160 | H57: =IF(C57="","",IF(TODAY()>=h2g(D57),G57,"")) -> 1160
C58: 40 | D58: =IF(h2g(TEXT($C$7+((ROW()-19)*29.5),"B2yyyy/mm/")&TEXT($C$7,"B2dd"))>$H$14,"",IF(h2g(TEXT($C$7+((ROW()-19)*29.5),"B2yyyy/mm/")&TEXT($C$7,"B2dd"))>h2g($C$9),"",TEXT($C$7+((ROW()-19)*29.5),"B2yyyy/mm/")&TEXT($C$7,"B2dd"))) -> 1433/01/25 | E58: 2011/12/20 | F58: 1160 | G58: 1160 | H58: =IF(C58="","",IF(TODAY()>=h2g(D58),G58,"")) -> 1160

Sheet تسديد عميل (hidden)
G5: تاريخ اليوم : | H5: =TODAY() -> 2022-02-05
B6: ملف العميــل | C6: 2300 | D6: الاســـــم | E6: =VLOOKUP(' تسديد عميل'!C6,المقسطون!B25:I60,2,0) -> 
D8: مدة القرض (بالاشهر) | E8: =VLOOKUP(C6,المقسطون!$B$25:$H$60,3,0) ->  | G8: القسـط الشهري | H8: =VLOOKUP(C6,المقسطون!$B$25:$H$60,6,0) -> 
D9: تاريـخ بدايـة القـرض | E9: =VLOOKUP(C6,المقسطون!$B$25:$H$60,7,0) ->  | G9: الســعر النقـدي | H9: =VLOOKUP(C6,المقسطون!$B$25:$H$60,4,0) -> 
D10: تاريـخ نهايـة القـرض | E10: =TEXT(E9+((E8-1)*29.5),"B2yyyy/mm/")&TEXT(E9,"B2dd") ->  | G10: الربــــــــــــح | H10: =VLOOKUP(C6,المقسطون!B25:K60,9,0) -> 
D11: حــــــالة العقـــــــد | E11: =VLOOKUP(C6,المقسطون!B26:N61,11,0) ->  | G11: قيمــة القــرض | H11: =VLOOKUP(C6,المقسطون!B25:I60,5,0) -> 
D12: نسبة السداد بـ % | E12: =H12/H11 ->  | G12: المبالغ المســددة | H12: =SUM(H19:H58) -> 
G13: المبالغ المتبيقية | H13: =SUM(H11-H12) -> 
G14: الأشهر المسددة | H14: =(H12/H8) -> 
G15: الأشهر المتبقية | H15: =H13/H8 -> 
E16: حركة تسديد عميل
D18: الشهــر | E18: تاريخ التحصيل | F18: رصيد القرض | G18: القسط | H18: التسديدات
D19: =IF(ROW()-18>$E$8,"",ROW()-18) ->  | E19: =IF(D19="","",TEXT($E$9+((D19-1)*29.5),"B2yyyy/mm/")&TEXT($E$9,"B2dd")) ->  | F19: =H11 ->  | G19: =IF(E19="","",IF($H$11="","",$H$11/$E$8)) ->  | H19: =IF(D19="","",IF(TODAY()>=h2g(E19),G19,"")) -> 
E20: =IF(D20="","",TEXT($E$9+((D20-1)*29.5),"B2yyyy/mm/")&TEXT($E$9,"B2dd")) ->  | F20: =IF(E20="","",F19-G20) ->  | H20: =IF(D20="","",IF(TODAY()>=h2g(E20),G20,"")) -> 
F21: =IF(E21="","",F20-G21) ->  | H21: =IF(D21="","",IF(TODAY()>=h2g(E21),G21,"")) -> 
E22: =IF(D22="","",TEXT($E$9+((D22-1)*29.5),"B2yyyy/mm/")&TEXT($E$9,"B2dd")) ->  | H22: =IF(D22="","",IF(TODAY()>=h2g(E22),G22,"")) -> 
H23: =IF(D23="","",IF(TODAY()>=h2g(E23),G23,"")) -> 
H24: =IF(D24="","",IF(TODAY()>=h2g(E24),G24,"")) -> 
H25: =IF(D25="","",IF(TODAY()>=h2g(E25),G25,"")) -> 
H26: =IF(D26="","",IF(TODAY()>=h2g(E26),G26,"")) -> 
H27: =IF(D27="","",IF(TODAY()>=h2g(E27),G27,"")) -> 
H28: =IF(D28="","",IF(TODAY()>=h2g(E28),G28,"")) -> 
H29: =IF(D29="","",IF(TODAY()>=h2g(E29),G29,"")) -> 
H30: =IF(D30="","",IF(TODAY()>=h2g(E30),G30,"")) -> 
H31: =IF(D31="","",IF(TODAY()>=h2g(E31),G31,"")) -> 
H32: =IF(D32="","",IF(TODAY()>=h2g(E32),G32,"")) -> 
H33: =IF(D33="","",IF(TODAY()>=h2g(E33),G33,"")) -> 
H34: =IF(D34="","",IF(TODAY()>=h2g(E34),G34,"")) -> 
H35: =IF(D35="","",IF(TODAY()>=h2g(E35),G35,"")) -> 
H36: =IF(D36="","",IF(TODAY()>=h2g(E36),G36,"")) -> 
H37: =IF(D37="","",IF(TODAY()>=h2g(E37),G37,"")) -> 
H38: =IF(D38="","",IF(TODAY()>=h2g(E38),G38,"")) -> 
H39: =IF(D39="","",IF(TODAY()>=h2g(E39),G39,"")) -> 
H40: =IF(D40="","",IF(TODAY()>=h2g(E40),G40,"")) -> 
H41: =IF(D41="","",IF(TODAY()>=h2g(E41),G41,"")) -> 
H42: =IF(D42="","",IF(TODAY()>=h2g(E42),G42,"")) -> 
H43: =IF(D43="","",IF(TODAY()>=h2g(E43),G43,"")) -> 
H44: =IF(D44="","",IF(TODAY()>=h2g(E44),G44,"")) -> 
H45: =IF(D45="","",IF(TODAY()>=h2g(E45),G45,"")) -> 
H46: =IF(D46="","",IF(TODAY()>=h2g(E46),G46,"")) -> 
H47: =IF(D47="","",IF(TODAY()>=h2g(E47),G47,"")) -> 
H48: =IF(D48="","",IF(TODAY()>=h2g(E48),G48,"")) -> 
H49: =IF(D49="","",IF(TODAY()>=h2g(E49),G49,"")) -> 
H50: =IF(D50="","",IF(TODAY()>=h2g(E50),G50,"")) -> 
H51: =IF(D51="","",IF(TODAY()>=h2g(E51),G51,"")) -> 
H52: =IF(D52="","",IF(TODAY()>=h2g(E52),G52,"")) -> 
H53: =IF(D53="","",IF(TODAY()>=h2g(E53),G53,"")) -> 
H54: =IF(D54="","",IF(TODAY()>=h2g(E54),G54,"")) -> 
H55: =IF(D55="","",IF(TODAY()>=h2g(E55),G55,"")) -> 
H56: =IF(D56="","",IF(TODAY()>=h2g(E56),G56,"")) -> 
H57: =IF(D57="","",IF(TODAY()>=h2g(E57),G57,"")) -> 
H58: =IF(D58="","",IF(TODAY()>=h2g(E58),G58,"")) -> 

Sheet الاقساط والاشهر (hidden)
B2: الشـــــــهر | C2: 22
B4: المبلغ الاساسي | C4: 50000
B5: الـزيادة | C5: =INDEX(D10:D49,MATCH(C2,B10:B49,0)) -> 13500
B6: المبلغ بعد الزيادة | C6: =INDEX(C10:C49,MATCH(C2,B10:B49,0)) -> 63500
B7: القسط الشهري | C7: =INDEX(E10:E49,MATCH(C2,B10:B49,0)) -> 2886.363636
B9: الاشهر | C9: المبلغ بعد الزيادة | D9: الزيادة | E9: القسط الشهري
B10: 1 | C10: =C4+D10 -> 50750 | D10: =C4*0.015 -> 750 | E10: =C10/1 -> 50750
B11: 2 | C11: =C4+D11 -> 51250 | D11: =C4*0.025 -> 1250 | E11: =C11/2 -> 25625
B12: 3 | C12: =C4+D12 -> 51750 | D12: =C4*0.035 -> 1750 | E12: =C12/3 -> 17250
B13: 4 | C13: =C4+D13 -> 52250 | D13: =C4*0.045 -> 2250 | E13: =C13/4 -> 13062.5
B14: 5 | C14: =C4+D14 -> 52750 | D14: =C4*0.055 -> 2750 | E14: =C14/5 -> 10550
B15: 6 | C15: =C4+D15 -> 53250 | D15: =C4*0.065 -> 3250 | E15: =C15/6 -> 8875
B16: 7 | C16: =C4+D16 -> 53750 | D16: =C4*0.075 -> 3750 | E16: =C16/7 -> 7678.571429
B17: 8 | C17: =C4+D17 -> 54250 | D17: =C4*0.085 -> 4250 | E17: =C17/8 -> 6781.25
B18: 9 | C18: =C4+D18 -> 54750 | D18: =C4*0.095 -> 4750 | E18: =C18/9 -> 6083.333333
B19: 10 | C19: =C4+D19 -> 57500 | D19: =C4*0.15 -> 7500 | E19: =C19/10 -> 5750
B20: 11 | C20: =C4+D20 -> 58000 | D20: =C4*0.16 -> 8000 | E20: =C20/11 -> 5272.727273
B21: 12 | C21: =C4+D21 -> 58500 | D21: =C4*0.17 -> 8500 | E21: =C21/12 -> 4875
B22: 13 | C22: =C4+D22 -> 59000 | D22: =C4*0.18 -> 9000 | E22: =C22/13 -> 4538.461538
B23: 14 | C23: =C4+D23 -> 59500 | D23: =C4*0.19 -> 9500 | E23: =C23/14 -> 4250
B24: 15 | C24: =C4+D24 -> 60000 | D24: =C4*0.2 -> 10000 | E24: =C24/15 -> 4000
B25: 16 | C25: =C4+D25 -> 60500 | D25: =C4*0.21 -> 10500 | E25: =C25/16 -> 3781.25
B26: 17 | C26: =C4+D26 -> 61000 | D26: =C4*0.22 -> 11000 | E26: =C26/17 -> 3588.235294
B27: 18 | C27: =C4+D27 -> 61500 | D27: =C4*0.23 -> 11500 | E27: =C27/18 -> 3416.666667
B28: 19 | C28: =C4+D28 -> 62000 | D28: =C4*0.24 -> 12000 | E28: =C28/19 -> 3263.157895
B29: 20 | C29: =C4+D29 -> 62500 | D29: =C4*0.25 -> 12500 | E29: =C29/20 -> 3125
B30: 21 | C30: =C4+D30 -> 63000 | D30: =C4*0.26 -> 13000 | E30: =C30/21 -> 3000
B31: 22 | C31: =C4+D31 -> 63500 | D31: =C4*0.27 -> 13500 | E31: =C31/22 -> 2886.363636
B32: 23 | C32: =C4+D32 -> 64000 | D32: =C4*0.28 -> 14000 | E32: =C32/23 -> 2782.608696
B33: 24 | C33: =C4+D33 -> 64500 | D33: =C4*0.29 -> 14500 | E33: =C33/24 -> 2687.5
B34: 25 | C34: =C4+D34 -> 65000 | D34: =C4*0.3 -> 15000 | E34: =C34/25 -> 2600
B35: 26 | C35: =C4+D35 -> 65500 | D35: =C4*0.31 -> 15500 | E35: =C35/26 -> 2519.230769
B36: 27 | C36: =C4+D36 -> 66000 | D36: =C4*0.32 -> 16000 | E36: =C36/27 -> 2444.444444
B37: 28 | C37: =C4+D37 -> 66500 | D37: =C4*0.33 -> 16500 | E37: =C37/28 -> 2375
B38: 29 | C38: =C4+D38 -> 67000 | D38: =C4*0.34 -> 17000 | E38: =C38/29 -> 2310.344828
B39: 30 | C39: =C4+D39 -> 67500 | D39: =C4*0.35 -> 17500 | E39: =C39/30 -> 2250
B40: 31 | C40: =C4+D40 -> 68000 | D40: =C4*0.36 -> 18000 | E40: =C40/31 -> 2193.548387
B41: 32 | C41: =C4+D41 -> 68500 | D41: =C4*0.37 -> 18500 | E41: =C41/32 -> 2140.625
B42: 33 | C42: =C4+D42 -> 69000 | D42: =C4*0.38 -> 19000 | E42: =C42/33 -> 2090.909091
B43: 34 | C43: =C4+D43 -> 69500 | D43: =C4*0.39 -> 19500 | E43: =C43/34 -> 2044.117647
B44: 35 | C44: =C4+D44 -> 70000 | D44: =C4*0.4 -> 20000 | E44: =C44/35 -> 2000
B45: 36 | C45: =C4+D45 -> 70500 | D45: =C4*0.41 -> 20500 | E45: =C45/36 -> 1958.333333
B46: 37 | C46: =C4+D46 -> 71000 | D46: =C4*0.42 -> 21000 | E46: =C46/37 -> 1918.918919
B47: 38 | C47: =C4+D47 -> 71500 | D47: =C4*0.43 -> 21500 | E47: =C47/38 -> 1881.578947
B48: 39 | C48: =C4+D48 -> 72000 | D48: =C4*0.44 -> 22000 | E48: =C48/39 -> 1846.153846
B49: 40 | C49: =C4+D49 -> 72500 | D49: =C4*0.45 -> 22500 | E49: =C49/40 -> 1812.5
